[Event "GER-ch Youth U14 2019"]
[Site "Willingen"]
[Date "2019.06.13"]
[Round "7.3"]
[White "Weihrauch, Jakob"]
[Black "Hetzner, Hannes"]
[Result "1-0"]
[ECO "C17"]
[WhiteElo "2158"]
[BlackElo "1996"]
[Annotator "NA"]
[PlyCount "58"]
[EventDate "2019.06.07"]
[EventType "swiss"]
[EventRounds "9"]
[EventCountry "GER"]
[SourceTitle "playchess.com"]
[Source "ChessBase"]
[SourceQuality "1"]
[TimeControl "40/5400+30:1800+30"]

1. e4 {[%emt 0:00:00]} e6 {[%emt 0:00:00]} 2. d4 {[%emt 0:00:00]} d5 {[%emt 0:00:00]} 3. Nc3 {[%emt 0:00:00]} Bb4 {[%emt 0:00:00]} 4. e5 {[%emt 0:00:25]} c5 {[%emt 0:00:00]} 5. Bd2 {[%emt 0:00:45]} Ne7 {[%emt 0:00:21]} 6. a3 {[%emt 0:00:44]} Bxc3 {[%emt 0:03:53]} 7. Bxc3 {[%emt 0:00:02]} Nbc6 {[%emt 0:06:29]} 8. Nf3 {[%emt 0:01:15]} cxd4 {[%emt 0:06:57]} 9. Bxd4 {[%emt 0:00:07]} Nf5 {[%emt 0:06:36]} 10. Bc3 {[%emt 0:00:27]} d4 {[%emt 0:03:47]} 11. Bd2 {[%emt 0:00:06]} f6 {[%emt 0:06:38]} 12. Bd3 {[%emt 0:04:40]} O-O {[%emt 0:07:16]} 13. Qe2 {[%emt 0:03:14]} Qc7 {[%emt 0:08:51]} 14. O-O-O {[%emt 0:07:19]} Bd7 {[%emt 0:06:03]} 15. Bxf5 {[%emt 0:01:55]} exf5 {[%emt 0:00:12]} 16. Qc4+ {[%emt 0:00:07]} Kh8 {[%emt 0:01:17]} 17. e6 {[%emt 0:00:35]} b5 {[%emt 0:04:31]} 18. Qc5 {[%emt 0:06:44]} Bxe6 {[%emt 0:05:00]} 19. Nxd4 {[%emt 0:00:08]} Bd7 {[%emt 0:01:20]} 20. Nxb5 {[%emt 0:02:17]} Qb7 {[%emt 0:05:03]} 21. Nd6 {[%emt 0:02:49]} Qa6 {[%emt 0:00:46]} 22. Qb5 {[%emt 0:08:11]} Qxb5 {[%emt 0:01:55]} 23. Nxb5 {[%emt 0:00:02]} Ne5 {[%emt 0:01:02]} 24. Nc7 {[%emt 0:04:31]} Rac8 {[%emt 0:05:31]} 25. Bb4 {[%emt 0:00:17]} Rf7 {[%emt 0:01:37]} 26. Nd5 {[%emt 0:02:46]} Ba4 {[%emt 0:04:05]} 27. Rd2 {[%emt 0:08:41]} Rd7 {[%emt 0:04:48]} 28. Bc3 {[%emt 0:08:05]} Bc6 {[%emt 0:02:51] normal} 29. Rhd1 {[%emt 0:07:39]} Rcd8 {[%emt 0:01:55] normal} 1-0

[Event "GER-ch Youth U14 2019"]
[Site "Willingen"]
[Date "2019.06.13"]
[Round "7.4"]
[White "Gallasch, Jonas"]
[Black "von Krosigk, Florian"]
[Result "1-0"]
[ECO "E90"]
[WhiteElo "2137"]
[BlackElo "1926"]
[Annotator "NA"]
[PlyCount "61"]
[EventDate "2019.06.07"]
[EventType "swiss"]
[EventRounds "9"]
[EventCountry "GER"]
[SourceTitle "playchess.com"]
[Source "ChessBase"]
[SourceQuality "1"]
[TimeControl "40/5400+30:1800+30"]

1. d4 {[%emt 0:00:00]} Nf6 {[%emt 0:00:00]} 2. c4 {[%emt 0:00:00]} g6 {[%emt 0:00:54]} 3. Nc3 {[%emt 0:01:20]} Bg7 {[%emt 0:00:10]} 4. e4 {[%emt 0:01:37]} d6 {[%emt 0:00:28]} 5. Nf3 {[%emt 0:00:32]} O-O {[%emt 0:00:34]} 6. h3 {[%emt 0:00:07]} e5 {[%emt 0:13:47]} 7. dxe5 {[%emt 0:00:19]} dxe5 {[%emt 0:00:06]} 8. Be3 {[%emt 0:00:09]} h6 {[%emt 0:09:19]} 9. Qc2 {[%emt 0:04:24]} Qe7 {[%emt 0:04:19]} 10. Be2 {[%emt 0:02:46]} c6 {[%emt 0:04:54]} 11. O-O {[%emt 0:03:56]} Nh5 {[%emt 0:07:39]} 12. Qd2 {[%emt 0:15:32]} Kh7 {[%emt 0:06:30]} 13. Rad1 {[%emt 0:09:10]} Na6 {[%emt 0:07:19]} 14. Ne1 {[%emt 0:25:40]} Nf6 {[%emt 0:06:45]} 15. Nd3 {[%emt 0:01:49]} Nd7 {[%emt 0:05:51]} 16. Qc2 {[%emt 0:09:38]} f5 {[%emt 0:11:40]} 17. exf5 {[%emt 0:01:58]} gxf5 {[%emt 0:00:13]} 18. f4 {[%emt 0:01:29]} e4 {[%emt 0:00:29]} 19. Nf2 {[%emt 0:00:16]} Rg8 {[%emt 0:02:50]} 20. Kh2 {[%emt 0:00:59]} Bf6 {[%emt 0:08:04]} 21. Rg1 {[%emt 0:04:18]} Bh4 {[%emt 0:02:14]} 22. g3 {[%emt 0:00:23]} Bf6 {[%emt 0:00:32]} 23. a3 {[%emt 0:01:38]} Nc7 {[%emt 0:01:58]} 24. Rdf1 {[%emt 0:04:24]} Ne6 {[%emt 0:02:41]} 25. Rd1 {[%emt 0:00:56]} Nc7 {[%emt 0:00:16]} 26. g4 {[%emt 0:01:06]} Bxc3 {[%emt 0:01:05]} 27. Qxc3 {[%emt 0:00:25]} fxg4 {[%emt 0:00:43]} 28. Nxg4 {[%emt 0:00:27]} h5 {[%emt 0:01:12]} 29. Rxd7 {[%emt 0:00:18]} Bxd7 {[%emt 0:01:05]} 30. Nf6+ {[%emt 0:00:06]} Kh8 {[%emt 0:00:25]} 31. Nxg8+ {[%emt 0:00:07] normal} 1-0

[Event "GER-ch Youth U14 2019"]
[Site "Willingen"]
[Date "2019.06.13"]
[Round "7.5"]
[White "Lutz, Ruben"]
[Black "Arakelian, Aik"]
[Result "1/2-1/2"]
[ECO "A40"]
[WhiteElo "2055"]
[BlackElo "1911"]
[Annotator "NA"]
[PlyCount "46"]
[EventDate "2019.06.07"]
[EventType "swiss"]
[EventRounds "9"]
[EventCountry "GER"]
[SourceTitle "playchess.com"]
[Source "ChessBase"]
[SourceQuality "1"]
[TimeControl "40/5400+30:1800+30"]

1. d4 {[%emt 0:00:00]} g6 {[%emt 0:00:00]} 2. Bf4 {[%emt 0:00:22]} d6 {[%emt 0:00:04]} 3. Nf3 {[%emt 0:03:46]} Bg7 {[%emt 0:00:32]} 4. c3 {[%emt 0:01:47]} Nd7 {[%emt 0:01:00]} 5. e4 {[%emt 0:05:11]} e5 {[%emt 0:01:56]} 6. dxe5 {[%emt 0:00:44]} dxe5 {[%emt 0:00:14]} 7. Bg3 {[%emt 0:01:06]} Qe7 {[%emt 0:01:50]} 8. Nbd2 {[%emt 0:02:07]} Ngf6 {[%emt 0:01:28]} 9. h3 {[%emt 0:20:13]} O-O {[%emt 0:04:35]} 10. Bc4 {[%emt 0:00:51]} h6 {[%emt 0:06:46]} 11. O-O {[%emt 0:05:51]} Kh7 {[%emt 0:03:56]} 12. Re1 {[%emt 0:01:38]} Nh5 {[%emt 0:06:14]} 13. Bh2 {[%emt 0:01:21]} Nb6 {[%emt 0:06:26]} 14. Bf1 {[%emt 0:03:41]} Bf6 {[%emt 0:02:20]} 15. a4 {[%emt 0:02:15]} a5 {[%emt 0:02:02]} 16. Nc4 {[%emt 0:05:28]} Nxc4 {[%emt 0:04:48]} 17. Bxc4 {[%emt 0:00:05]} Be6 {[%emt 0:00:17]} 18. Qb3 {[%emt 0:02:46]} Bxc4 {[%emt 0:03:11]} 19. Qxc4 {[%emt 0:00:08]} Ng7 {[%emt 0:00:15]} 20. Rad1 {[%emt 0:06:08]} c6 {[%emt 0:03:26]} 21. Re3 {[%emt 0:08:09]} Rfd8 {[%emt 0:04:34]} 22. Red3 {[%emt 0:00:33]} Rxd3 {[%emt 0:00:17]} 23. Qxd3 {[%emt 0:12:19]} Qc5 {[%emt 0:03:23] normal} 1/2-1/2

[Event "GER-ch Youth U14 2019"]
[Site "Willingen"]
[Date "2019.06.13"]
[Round "7.7"]
[White "Haack, Kevin"]
[Black "Bui, Bao Anh Le"]
[Result "0-1"]
[ECO "B90"]
[WhiteElo "2033"]
[BlackElo "2065"]
[Annotator "NA"]
[PlyCount "40"]
[EventDate "2019.06.07"]
[EventType "swiss"]
[EventRounds "9"]
[EventCountry "GER"]
[SourceTitle "playchess.com"]
[Source "ChessBase"]
[SourceQuality "1"]
[TimeControl "40/5400+30:1800+30"]

1. e4 {[%emt 0:00:00]} c5 {[%emt 0:00:14]} 2. Nf3 {[%emt 0:00:00]} d6 {[%emt 0:00:32]} 3. d4 {[%emt 0:00:00]} cxd4 {[%emt 0:00:12]} 4. Nxd4 {[%emt 0:00:02]} Nf6 {[%emt 0:00:10]} 5. Nc3 {[%emt 0:00:06]} a6 {[%emt 0:00:13]} 6. Be3 {[%emt 0:00:14]} e5 {[%emt 0:00:49]} 7. Nb3 {[%emt 0:00:11]} Be6 {[%emt 0:00:31]} 8. f4 {[%emt 0:00:06]} exf4 {[%emt 0:00:17]} 9. Bxf4 {[%emt 0:00:06]} Nc6 {[%emt 0:00:03]} 10. Qe2 {[%emt 0:00:29]} Rc8 {[%emt 0:00:09]} 11. h3 {[%emt 0:00:22]} Nb4 {[%emt 0:01:58]} 12. O-O-O {[%emt 0:00:17]} Nxa2+ {[%emt 0:00:58]} 13. Nxa2 {[%emt 0:00:06]} Bxb3 {[%emt 0:00:11]} 14. Nc3 {[%emt 0:00:06]} Be6 {[%emt 0:00:11]} 15. e5 {[%emt 0:06:57]} Nd7 {[%emt 0:00:29]} 16. exd6 {[%emt 0:00:39]} Qa5 {[%emt 0:00:09]} 17. Qe3 {[%emt 0:05:46]} g5 {[%emt 0:09:31]} 18. Bxg5 {[%emt 0:07:02]} Bg7 {[%emt 0:01:55]} 19. Nb1 {[%emt 0:29:41]} Bxb2+ {[%emt 0:01:40]} 20. Kxb2 {[%emt 0:00:15]} Qa2+ {[%emt 0:00:04] normal} 0-1

[Event "GER-ch Youth U14 2019"]
[Site "Willingen"]
[Date "2019.06.13"]
[Round "7.8"]
[White "Deutsch, Christoph"]
[Black "Eilenberg, Jonas"]
[Result "1/2-1/2"]
[ECO "C01"]
[WhiteElo "1937"]
[BlackElo "1934"]
[Annotator "NA"]
[PlyCount "66"]
[EventDate "2019.06.07"]
[EventType "swiss"]
[EventRounds "9"]
[EventCountry "GER"]
[SourceTitle "playchess.com"]
[Source "ChessBase"]
[SourceQuality "1"]
[TimeControl "40/5400+30:1800+30"]

1. e4 {[%emt 0:00:00]} e6 {[%emt 0:00:00]} 2. d4 {[%emt 0:00:00]} d5 {[%emt 0:00:00]} 3. exd5 {[%emt 0:00:00]} exd5 {[%emt 0:00:00]} 4. Nf3 {[%emt 0:00:00]} Nc6 {[%emt 0:00:00]} 5. c4 {[%emt 0:00:01]} Bb4+ {[%emt 0:00:27]} 6. Nc3 {[%emt 0:00:37]} Nge7 {[%emt 0:00:39]} 7. a3 {[%emt 0:01:24]} Bxc3+ {[%emt 0:00:06]} 8. bxc3 {[%emt 0:00:06]} O-O {[%emt 0:00:05]} 9. Be2 {[%emt 0:01:01]} dxc4 {[%emt 0:00:04]} 10. Bxc4 {[%emt 0:04:26]} Nd5 {[%emt 0:00:09]} 11. Bxd5 {[%emt 0:02:44]} Qxd5 {[%emt 0:00:07]} 12. O-O {[%emt 0:00:07]} Bg4 {[%emt 0:00:48]} 13. Bf4 {[%emt 0:01:34]} Bxf3 {[%emt 0:01:28]} 14. Qxf3 {[%emt 0:00:13]} Qxf3 {[%emt 0:00:05]} 15. gxf3 {[%emt 0:00:09]} Rac8 {[%emt 0:03:37]} 16. Rab1 {[%emt 0:01:55]} b6 {[%emt 0:01:03]} 17. Rfe1 {[%emt 0:02:03]} Rfd8 {[%emt 0:03:36]} 18. Re4 h6 {[%emt 0:04:44]} 19. Rbe1 {[%emt 0:08:31]} Kf8 {[%emt 0:06:05]} 20. h4 {[%emt 0:05:06]} b5 {[%emt 0:06:25]} 21. Kg2 {[%emt 0:06:04]} Rd7 {[%emt 0:02:54]} 22. a4 {[%emt 0:16:13]} bxa4 {[%emt 0:11:03]} 23. Ra1 {[%emt 0:00:08]} Ne7 {[%emt 0:00:18]} 24. Rxa4 {[%emt 0:00:22]} Nd5 {[%emt 0:00:04]} 25. Bd2 {[%emt 0:03:02]} c6 {[%emt 0:05:13]} 26. Ra6 {[%emt 0:01:58]} Rb7 {[%emt 0:12:05]} 27. c4 {[%emt 0:03:34]} Nf6 {[%emt 0:01:13]} 28. Re1 {[%emt 0:00:30]} Rd7 {[%emt 0:01:06]} 29. Bb4+ {[%emt 0:03:45]} Kg8 {[%emt 0:00:07]} 30. Bc5 {[%emt 0:00:04]} Rcc7 {[%emt 0:08:58]} 31. Rea1 {[%emt 0:11:23]} Nh5 {[%emt 0:02:57]} 32. Rxa7 {[%emt 0:03:46]} Nf4+ {[%emt 0:00:25]} 33. Kh2 {[%emt 0:00:37]} Ne6 {[%emt 0:00:34] normal} 1/2-1/2

[Event "GER-ch Youth U14 2019"]
[Site "Willingen"]
[Date "2019.06.13"]
[Round "7.9"]
[White "Laux, Dominik"]
[Black "Chassard, Cedric"]
[Result "1/2-1/2"]
[ECO "A45"]
[WhiteElo "2061"]
[BlackElo "1772"]
[Annotator "NA"]
[PlyCount "58"]
[EventDate "2019.06.07"]
[EventType "swiss"]
[EventRounds "9"]
[EventCountry "GER"]
[SourceTitle "playchess.com"]
[Source "ChessBase"]
[SourceQuality "1"]
[TimeControl "40/5400+30:1800+30"]

1. d4 {[%emt 0:00:00]} Nf6 {[%emt 0:00:00]} 2. Bg5 {[%emt 0:00:18]} d5 {[%emt 0:00:00]} 3. e3 {[%emt 0:00:08]} c5 {[%emt 0:00:00]} 4. Bxf6 {[%emt 0:00:32]} gxf6 {[%emt 0:00:00]} 5. Nc3 {[%emt 0:01:17]} Nc6 {[%emt 0:00:12]} 6. Qh5 {[%emt 0:00:33]} e6 {[%emt 0:02:39]} 7. Nf3 {[%emt 0:01:15]} cxd4 {[%emt 0:02:38]} 8. exd4 {[%emt 0:00:28]} f5 {[%emt 0:02:48]} 9. Bb5 {[%emt 0:03:11]} Bd7 {[%emt 0:01:36]} 10. O-O {[%emt 0:03:45]} Qf6 {[%emt 0:03:12]} 11. Rfe1 {[%emt 0:04:06]} Be7 {[%emt 0:03:53]} 12. Ne5 {[%emt 0:06:02]} Nxe5 {[%emt 0:03:17]} 13. Rxe5 {[%emt 0:01:30]} Bxb5 {[%emt 0:02:02]} 14. Nxb5 {[%emt 0:02:39]} O-O {[%emt 0:00:23]} 15. Rae1 {[%emt 0:03:49]} Rac8 {[%emt 0:10:42]} 16. Nc3 {[%emt 0:16:44]} Qh4 {[%emt 0:01:22]} 17. Qd1 {[%emt 0:06:59]} Bd6 {[%emt 0:00:39]} 18. g3 {[%emt 0:00:52]} Qh3 {[%emt 0:07:43]} 19. R5e3 {[%emt 0:02:20]} Kh8 {[%emt 0:02:10]} 20. Ne2 {[%emt 0:04:11]} Rg8 {[%emt 0:03:41]} 21. Rf3 {[%emt 0:08:41]} Rg6 {[%emt 0:04:10]} 22. Nf4 {[%emt 0:02:25]} Bxf4 {[%emt 0:00:12]} 23. Rxf4 {[%emt 0:00:02]} Rh6 {[%emt 0:00:31]} 24. c3 {[%emt 0:01:04]} Qxh2+ {[%emt 0:04:11]} 25. Kf1 {[%emt 0:00:57]} Qh1+ {[%emt 0:02:35]} 26. Ke2 {[%emt 0:00:08]} Qh5+ {[%emt 0:00:06]} 27. Rf3 {[%emt 0:02:39]} Qg4 {[%emt 0:06:30]} 28. Qa4 {[%emt 0:03:28]} Rh2 {[%emt 0:14:54]} 29. Rd1 {[%emt 0:04:02]} b5 {[%emt 0:01:51] normal} 1/2-1/2

[Event "GER-ch Youth U14 2019"]
[Site "Willingen"]
[Date "2019.06.13"]
[Round "7.10"]
[White "Farokhi, Keyvan"]
[Black "Haufe, Laurin"]
[Result "1-0"]
[ECO "B90"]
[WhiteElo "1963"]
[BlackElo "1995"]
[Annotator "NA"]
[PlyCount "76"]
[EventDate "2019.06.07"]
[EventType "swiss"]
[EventRounds "9"]
[EventCountry "GER"]
[SourceTitle "playchess.com"]
[Source "ChessBase"]
[SourceQuality "1"]
[TimeControl "40/5400+30:1800+30"]

1. e4 {[%emt 0:00:00]} c5 {[%emt 0:00:00]} 2. Nf3 {[%emt 0:00:00]} d6 {[%emt 0:00:00]} 3. d4 {[%emt 0:00:00]} cxd4 {[%emt 0:00:00]} 4. Nxd4 {[%emt 0:00:00]} Nf6 {[%emt 0:00:00]} 5. Nc3 {[%emt 0:00:00]} a6 {[%emt 0:00:00]} 6. Nb3 {[%emt 0:00:07]} e6 {[%emt 0:00:12]} 7. g4 {[%emt 0:00:16]} Be7 {[%emt 0:04:07]} 8. Bg2 {[%emt 0:01:53]} Nc6 {[%emt 0:01:34]} 9. g5 {[%emt 0:00:35]} Nd7 {[%emt 0:00:22]} 10. f4 {[%emt 0:00:12]} b5 {[%emt 0:06:11]} 11. a3 {[%emt 0:01:04]} Bb7 {[%emt 0:02:03]} 12. O-O {[%emt 0:00:12]} Qc7 {[%emt 0:03:33]} 13. Be3 {[%emt 0:15:49]} O-O-O {[%emt 0:06:52]} 14. Nd4 {[%emt 0:07:11]} Nxd4 {[%emt 0:10:07]} 15. Qxd4 {[%emt 0:01:27]} e5 {[%emt 0:10:28]} 16. Qa7 {[%emt 0:10:54]} f6 {[%emt 0:05:40]} 17. Bh3 {[%emt 0:14:41]} Qb8 {[%emt 0:04:24]} 18. gxf6 {[%emt 0:08:04]} Qxa7 {[%emt 0:07:27]} 19. Bxa7 {[%emt 0:00:09]} gxf6 {[%emt 0:00:34]} 20. Be6 {[%emt 0:02:22]} Kc7 {[%emt 0:06:57]} 21. Nd5+ {[%emt 0:03:11]} Bxd5 {[%emt 0:00:27]} 22. Bxd5 {[%emt 0:00:20]} Nb6 {[%emt 0:01:37]} 23. Bxb6+ {[%emt 0:00:04]} Kxb6 {[%emt 0:00:06]} 24. f5 {[%emt 0:00:22]} Bf8 {[%emt 0:04:04]} 25. b3 {[%emt 0:02:42]} Bh6 {[%emt 0:03:21]} 26. Kf2 {[%emt 0:01:24]} Bd2 {[%emt 0:02:38]} 27. Ke2 {[%emt 0:04:28]} Bc3 {[%emt 0:02:40]} 28. Rad1 {[%emt 0:00:09]} Rd7 {[%emt 0:03:13]} 29. Be6 {[%emt 0:01:57]} Rdd8 {[%emt 0:00:54]} 30. Rd3 {[%emt 0:00:18]} Bb2 {[%emt 0:01:22]} 31. Rb1 {[%emt 0:00:44]} Bxa3 {[%emt 0:00:49]} 32. b4 {[%emt 0:00:01]} Bxb4 {[%emt 0:00:11]} 33. Rxb4 {[%emt 0:00:01]} a5 {[%emt 0:00:43]} 34. Rb1 {[%emt 0:00:14]} h6 {[%emt 0:04:13]} 35. Rdb3 {[%emt 0:00:44]} b4 {[%emt 0:00:41]} 36. c3 {[%emt 0:00:09]} Ra8 {[%emt 0:00:32]} 37. cxb4 {[%emt 0:00:17]} a4 {[%emt 0:00:08]} 38. Ra3 {[%emt 0:00:20]} Rhd8 {[%emt 0:00:10] normal} 1-0

[Event "GER-ch Youth U14 2019"]
[Site "Willingen"]
[Date "2019.06.13"]
[Round "7.11"]
[White "Matthaei, Jakob"]
[Black "Simukov, Erik"]
[Result "1/2-1/2"]
[ECO "C44"]
[WhiteElo "1666"]
[BlackElo "1904"]
[Annotator "NA"]
[PlyCount "48"]
[EventDate "2019.06.07"]
[EventType "swiss"]
[EventRounds "9"]
[EventCountry "GER"]
[SourceTitle "playchess.com"]
[Source "ChessBase"]
[SourceQuality "1"]
[TimeControl "40/5400+30:1800+30"]

1. e4 {[%emt 0:00:00]} e5 {[%emt 0:00:00]} 2. Nf3 {[%emt 0:00:00]} Nc6 {[%emt 0:00:00]} 3. d4 {[%emt 0:00:04]} exd4 {[%emt 0:00:00]} 4. Bc4 {[%emt 0:00:08]} Bc5 {[%emt 0:00:16]} 5. Ng5 {[%emt 0:00:44]} Nh6 {[%emt 0:00:30]} 6. Nxf7 {[%emt 0:01:20]} Nxf7 {[%emt 0:39:23]} 7. Bxf7+ {[%emt 0:00:12]} Kxf7 {[%emt 0:02:04]} 8. Qh5+ {[%emt 0:00:12]} g6 {[%emt 0:00:31]} 9. Qxc5 {[%emt 0:00:13]} d6 {[%emt 0:00:21]} 10. Qc4+ {[%emt 0:03:15]} Be6 {[%emt 0:03:11]} 11. Qe2 {[%emt 0:00:28]} Kg7 {[%emt 0:02:09]} 12. O-O {[%emt 0:05:26]} Qd7 {[%emt 0:01:51]} 13. Nd2 {[%emt 0:11:55]} Rae8 {[%emt 0:09:34]} 14. b3 {[%emt 0:08:30]} d5 {[%emt 0:04:33]} 15. Qb5 {[%emt 0:25:25]} dxe4 {[%emt 0:04:31]} 16. Nxe4 {[%emt 0:04:07]} Qd5 {[%emt 0:00:17]} 17. Qxd5 {[%emt 0:00:44]} Bxd5 {[%emt 0:00:16]} 18. Ng3 {[%emt 0:02:24]} h5 {[%emt 0:20:37]} 19. h4 {[%emt 0:03:06]} Ne5 {[%emt 0:00:18]} 20. Bd2 {[%emt 0:08:23]} Rhf8 {[%emt 0:01:15]} 21. c3 {[%emt 0:03:46]} dxc3 {[%emt 0:01:48]} 22. Bxc3 {[%emt 0:00:07]} Kh7 {[%emt 0:00:15]} 23. Rad1 {[%emt 0:01:30]} c6 {[%emt 0:00:24] normal} 24. Rfe1 {[%emt 0:02:45]} Nd7 {[%emt 0:02:33] normal} 1/2-1/2

[Event "GER-ch Youth U14 2019"]
[Site "Willingen"]
[Date "2019.06.13"]
[Round "7.12"]
[White "Kosev, Momchil"]
[Black "Schulemann, Gero"]
[Result "1/2-1/2"]
[ECO "B40"]
[WhiteElo "1827"]
[BlackElo "1862"]
[Annotator "NA"]
[PlyCount "70"]
[EventDate "2019.06.07"]
[EventType "swiss"]
[EventRounds "9"]
[EventCountry "GER"]
[SourceTitle "playchess.com"]
[Source "ChessBase"]
[SourceQuality "1"]
[TimeControl "40/5400+30:1800+30"]

1. e4 {[%emt 0:00:00]} c5 {[%emt 0:00:00]} 2. Nf3 {[%emt 0:00:00]} e6 {[%emt 0:00:00]} 3. d3 {[%emt 0:00:00]} Nc6 {[%emt 0:02:18]} 4. g3 {[%emt 0:00:00]} b6 {[%emt 0:03:52]} 5. Bg2 {[%emt 0:00:37]} Bb7 {[%emt 0:00:28]} 6. O-O {[%emt 0:00:42]} Be7 {[%emt 0:00:40]} 7. Re1 {[%emt 0:04:01]} Nf6 {[%emt 0:01:50]} 8. Nbd2 {[%emt 0:05:54]} d5 {[%emt 0:04:54]} 9. e5 {[%emt 0:00:55]} Nd7 {[%emt 0:00:17]} 10. Nf1 {[%emt 0:00:21]} b5 {[%emt 0:10:37]} 11. h4 {[%emt 0:06:21]} c4 {[%emt 0:07:21]} 12. d4 {[%emt 0:03:05]} a5 {[%emt 0:03:24]} 13. Bg5 {[%emt 0:09:09]} b4 {[%emt 0:05:09]} 14. Bxe7 {[%emt 0:00:33]} Qxe7 {[%emt 0:00:21]} 15. c3 {[%emt 0:10:55]} Nb6 {[%emt 0:09:28]} 16. Ne3 {[%emt 0:16:51]} Na7 {[%emt 0:06:49]} 17. Nc2 {[%emt 0:08:17]} Nb5 {[%emt 0:10:21]} 18. a4 {[%emt 0:01:02]} bxa3 {[%emt 0:07:13]} 19. Nxa3 {[%emt 0:00:14]} Nxa3 {[%emt 0:00:35]} 20. Rxa3 {[%emt 0:00:20]} O-O {[%emt 0:00:41]} 21. Nh2 {[%emt 0:02:15]} Bc6 {[%emt 0:01:51]} 22. Re3 {[%emt 0:03:14]} Rfb8 {[%emt 0:02:07]} 23. Qa1 {[%emt 0:05:42]} a4 {[%emt 0:01:50]} 24. f4 {[%emt 0:02:34]} Nd7 {[%emt 0:01:02]} 25. Rf3 {[%emt 0:01:23]} Rb3 {[%emt 0:01:55]} 26. Ra2 {[%emt 0:07:09]} Rab8 {[%emt 0:01:56]} 27. Nf1 {[%emt 0:01:30]} Nf8 {[%emt 0:02:55]} 28. Rf2 {[%emt 0:00:31]} Qb7 {[%emt 0:01:10]} 29. Qc1 {[%emt 0:00:38]} Nd7 {[%emt 0:03:42]} 30. Kh2 {[%emt 0:00:48]} f5 {[%emt 0:00:53]} 31. Bf3 {[%emt 0:01:19]} Nf8 {[%emt 0:01:20]} 32. g4 {[%emt 0:02:06]} fxg4 {[%emt 0:00:48]} 33. Bxg4 {[%emt 0:00:07]} Qe7 {[%emt 0:00:06]} 34. Qe3 {[%emt 0:03:32]} Qxh4+ {[%emt 0:01:38]} 35. Bh3 {[%emt 0:00:06]} R3b7 {[%emt 0:02:51] normal} 1/2-1/2

[Event "GER-ch Youth U14 2019"]
[Site "Willingen"]
[Date "2019.06.13"]
[Round "7.13"]
[White "Schubert, Nikita"]
[Black "Elsner, Robert"]
[Result "1-0"]
[ECO "E69"]
[WhiteElo "1806"]
[BlackElo "1745"]
[Annotator "NA"]
[PlyCount "56"]
[EventDate "2019.06.07"]
[EventType "swiss"]
[EventRounds "9"]
[EventCountry "GER"]
[SourceTitle "playchess.com"]
[Source "ChessBase"]
[SourceQuality "1"]
[TimeControl "40/5400+30:1800+30"]

1. d4 {[%emt 0:00:00]} Nf6 {[%emt 0:00:00]} 2. c4 {[%emt 0:00:00]} g6 {[%emt 0:00:00]} 3. g3 {[%emt 0:00:00]} Bg7 {[%emt 0:00:00]} 4. Bg2 {[%emt 0:00:00]} O-O {[%emt 0:00:00]} 5. Nc3 {[%emt 0:00:08]} d6 {[%emt 0:00:00]} 6. Nf3 {[%emt 0:00:07]} Nbd7 {[%emt 0:00:00]} 7. O-O {[%emt 0:00:13]} e5 {[%emt 0:00:01]} 8. e4 {[%emt 0:00:09]} c6 {[%emt 0:00:00]} 9. h3 {[%emt 0:05:19]} Re8 10. Be3 {[%emt 0:01:22]} exd4 {[%emt 0:00:25]} 11. Nxd4 {[%emt 0:00:28]} Nc5 {[%emt 0:00:07]} 12. Qc2 {[%emt 0:01:00]} Qe7 {[%emt 0:00:22]} 13. Rfe1 {[%emt 0:04:28]} Be6 {[%emt 0:10:51]} 14. b3 {[%emt 0:00:57]} Bd7 {[%emt 0:00:03]} 15. f3 {[%emt 0:10:56]} a5 {[%emt 0:04:05]} 16. Kh2 {[%emt 0:10:20]} h5 17. h4 {[%emt 0:08:59]} Nh7 {[%emt 0:28:28]} 18. Qd2 {[%emt 0:05:34]} Qf8 {[%emt 0:16:21]} 19. Rad1 {[%emt 0:02:49]} Rad8 {[%emt 0:00:14]} 20. Nce2 {[%emt 0:03:45]} a4 {[%emt 0:02:09]} 21. b4 {[%emt 0:04:57]} Ne6 {[%emt 0:00:04]} 22. a3 {[%emt 0:06:24]} Nxd4 {[%emt 0:02:02]} 23. Nxd4 {[%emt 0:01:09]} c5 {[%emt 0:06:44]} 24. Ne2 {[%emt 0:02:06]} Be6 {[%emt 0:00:03]} 25. Qc2 {[%emt 0:02:41]} cxb4 {[%emt 0:00:36]} 26. Qxa4 {[%emt 0:12:54]} bxa3 {[%emt 0:00:30]} 27. Qxa3 {[%emt 0:00:15]} Bxc4 {[%emt 0:00:29]} 28. Qb4 {[%emt 0:00:25]} b5 {[%emt 0:03:57] normal} 1-0

[Event "GER-ch Youth U14 2019"]
[Site "Willingen"]
[Date "2019.06.13"]
[Round "7.14"]
[White "Tham, Nam"]
[Black "May, Ben-Iven"]
[Result "1-0"]
[ECO "C50"]
[WhiteElo "1993"]
[BlackElo "1692"]
[Annotator "NA"]
[PlyCount "76"]
[EventDate "2019.06.07"]
[EventType "swiss"]
[EventRounds "9"]
[EventCountry "GER"]
[SourceTitle "playchess.com"]
[Source "ChessBase"]
[SourceQuality "1"]
[TimeControl "40/5400+30:1800+30"]

1. e4 {[%emt 0:00:00]} e5 {[%emt 0:00:00]} 2. Nf3 {[%emt 0:00:00]} Nc6 {[%emt 0:00:00]} 3. Bc4 {[%emt 0:00:00]} Nf6 {[%emt 0:00:00]} 4. d3 {[%emt 0:00:00]} Bc5 {[%emt 0:00:00]} 5. c3 {[%emt 0:00:00]} O-O {[%emt 0:00:05]} 6. Bb3 {[%emt 0:00:19]} d6 {[%emt 0:00:23]} 7. Nbd2 {[%emt 0:00:08]} Bb6 {[%emt 0:00:54]} 8. h3 {[%emt 0:00:12]} Ne7 {[%emt 0:00:27]} 9. Nf1 {[%emt 0:00:27]} Ng6 {[%emt 0:00:07]} 10. Ng3 {[%emt 0:00:05]} h6 {[%emt 0:00:43]} 11. O-O {[%emt 0:00:34]} c6 {[%emt 0:00:13]} 12. Re1 {[%emt 0:00:25]} Re8 {[%emt 0:00:07]} 13. d4 {[%emt 0:11:50]} Qc7 {[%emt 0:06:23]} 14. Nh2 {[%emt 0:10:52]} Nf8 {[%emt 0:21:26]} 15. dxe5 {[%emt 0:09:16]} dxe5 {[%emt 0:02:57]} 16. Qf3 {[%emt 0:01:04]} N8h7 {[%emt 0:01:23]} 17. Nf5 {[%emt 0:05:13]} Be6 {[%emt 0:05:23]} 18. Bc2 {[%emt 0:05:15]} Rad8 {[%emt 0:07:06]} 19. Nf1 {[%emt 0:07:05]} Rd7 {[%emt 0:10:30]} 20. N1g3 {[%emt 0:00:47]} Red8 {[%emt 0:00:35]} 21. Nh5 {[%emt 0:11:57]} Nxh5 {[%emt 0:04:36]} 22. Qxh5 {[%emt 0:00:09]} Bc5 {[%emt 0:08:04]} 23. Rf1 {[%emt 0:06:12]} a5 {[%emt 0:05:56]} 24. Kh1 {[%emt 0:01:30]} f6 {[%emt 0:08:36]} 25. f4 {[%emt 0:07:22]} Kh8 {[%emt 0:07:04]} 26. fxe5 {[%emt 0:04:28]} Bc4 {[%emt 0:01:43]} 27. e6 {[%emt 0:06:03]} Bxf1 {[%emt 0:04:42]} 28. exd7 {[%emt 0:00:04]} Bc4 {[%emt 0:00:15]} 29. Nxg7 {[%emt 0:03:35]} Qg3 {[%emt 0:04:03]} 30. Bf4 {[%emt 0:02:15]} Qxg7 {[%emt 0:00:39]} 31. Qxc5 {[%emt 0:00:24]} Rg8 {[%emt 0:00:11]} 32. Qf2 {[%emt 0:00:50]} Qxd7 {[%emt 0:00:57]} 33. b3 {[%emt 0:00:57]} Be6 {[%emt 0:00:15]} 34. Bxh6 {[%emt 0:00:50]} Bxh3 {[%emt 0:00:32]} 35. g3 {[%emt 0:00:10]} Qg4 {[%emt 0:00:34]} 36. Bf4 {[%emt 0:01:17]} Qh5 {[%emt 0:00:38]} 37. Kg1 {[%emt 0:00:52]} Ng5 {[%emt 0:00:20]} 38. Bd1 {[%emt 0:00:58]} Qh7 {[%emt 0:00:00] normal} 1-0